bitfinex-derivatives/quotes_BTCF0:USTF0_20250117
["timestamp","ask_amount","ask_price","bid_price","bid_amount"]
[1737131442665,0.4734,104740.0,104720.0,0.08777463]
[1737131442864,0.4734,104740.0,104720.0,0.13550663]
[1737131443163,0.66405632,104740.0,104730.0,0.13550363]
[1737131444668,0.4734,104740.0,104730.0,0.13550363]
[1737131445167,0.60890163,104740.0,104710.0,0.1456905]
[1737131445356,0.44857463,104730.0,104710.0,0.13551163]
[1737131445557,0.1156,104720.0,104710.0,0.13551163]
[1737131449772,0.4764,104720.0,104710.0,0.047737]
[1737131449961,0.4764,104720.0,104710.0,0.13551163]
[1737131450465,0.67857463,104720.0,104700.0,0.09923141]
[1737131450769,0.4726,104710.0,104700.0,0.14697141]
[1737131451263,0.66329546,104710.0,104700.0,0.14697141]
[1737131452273,0.4726,104710.0,104700.0,0.14697141]
[1737131452470,0.60811263,104710.0,104700.0,0.00143247]
[1737131452674,0.60811263,104710.0,104690.0,0.047744]
[1737131452974,0.3608,104700.0,104690.0,0.047744]
[1737131453368,0.3608,104700.0,104690.0,0.13551863]
[1737131454070,0.44857463,104700.0,104690.0,0.047744]
[1737131455277,0.44857463,104700.0,104680.0,0.14527682]
[1737131455480,0.2305,104690.0,104680.0,0.05750219]
[1737131456669,0.31827463,104690.0,104680.0,0.05750219]
[1737131457367,0.2305,104690.0,104680.0,0.05750219]
[1737131458179,0.31827463,104690.0,104680.0,0.05750219]
[1737131458374,0.31827463,104690.0,104680.0,0.00975219]
[1737131458579,0.72682263,104690.0,104660.0,0.52319198]
[1737131458872,0.56217463,104680.0,104660.0,0.52319198]
[1737131459379,0.66496382,104680.0,104670.0,0.047757]
[1737131460169,0.57718919,104680.0,104670.0,0.047757]
[1737131460580,0.4744,104680.0,104670.0,0.047757]
[1737131460786,0.56217463,104680.0,104670.0,0.047757]
[1737131461280,0.56217463,104680.0,104660.0,0.53325714]
[1737131462467,0.10279164,104670.0,104660.0,0.53325714]
[1737131462678,0.19056627,104670.0,104660.0,0.01006416]
[1737131462878,0.23832327,104670.0,104650.0,0.408564]
[1737131463182,0.08777463,104660.0,104650.0,0.047764]
[1737131463373,0.41166627,104660.0,104650.0,0.047764]
[1737131463572,0.77246627,104660.0,104640.0,0.1109]
[1737131463777,0.49634063,104650.0,104620.0,0.36223343]
[1737131464077,0.08777463,104630.0,104620.0,0.36223343]
[1737131464473,0.08777463,104640.0,104620.0,0.3724383]
[1737131464782,0.08777463,104640.0,104620.0,0.46021293]
[1737131465484,0.58469164,104650.0,104630.0,0.08777463]
[1737131465678,0.4819,104650.0,104630.0,0.13554863]
[1737131465870,0.4819,104650.0,104630.0,0.49634863]
[1737131466075,0.56967463,104650.0,104630.0,0.49634863]
[1737131466480,0.1211,104650.0,104640.0,0.49634463]
[1737131466682,0.00143387,104660.0,104640.0,0.65434926]
[1737131466891,0.00143387,104660.0,104650.0,0.408566]
[1737131467683,1.07633463,104670.0,104650.0,0.047766]
[1737131467886,0.08777463,104660.0,104640.0,0.4788]
[1737131468180,0.44857463,104660.0,104640.0,0.52657]
[1737131468483,0.08777463,104650.0,104640.0,0.52657]
[1737131468680,0.60683563,104660.0,104640.0,0.52657]
[1737131468886,0.44857463,104650.0,104640.0,0.118]
[1737131469180,0.61214163,104650.0,104630.0,0.047773]
[1737131469393,0.25624563,104640.0,104620.0,0.4202153]
[1737131469689,0.1207,104640.0,104630.0,0.047775]
[1737131470484,0.1207,104640.0,104630.0,0.13554963]
[1737131470875,0.1207,104640.0,104630.0,0.047775]
[1737131471283,0.20847463,104640.0,104630.0,0.047775]
[1737131471986,0.4713,104660.0,104650.0,0.047766]
[1737131472190,0.67637463,104660.0,104650.0,0.047766]
[1737131472684,0.1173,104660.0,104650.0,0.13554063]
[1737131473090,0.51539379,104670.0,104650.0,0.49634063]
[1737131473286,0.51539379,104670.0,104660.0,0.047761]
[1737131473492,0.00143379,104670.0,104660.0,0.13553563]
[1737131477091,0.11761736,104680.0,104660.0,0.58411026]
[1737131477292,0.11761736,104680.0,104670.0,0.49633163]
[1737131477492,0.11761736,104680.0,104670.0,0.72393163]
[1737131478485,0.1173,104690.0,104680.0,0.047752]
[1737131478781,0.1173,104690.0,104680.0,0.408552]
[1737131480085,1.37339383,104710.0,104680.0,0.49632663]
[1737131480294,0.37299535,104710.0,104700.0,0.13551763]
[1737131480494,0.37156206,104710.0,104700.0,0.49631763]
[1737131480680,0.37156206,104710.0,104700.0,0.81219226]
[1737131480888,0.37156206,104710.0,104700.0,0.72441763]
[1737131481492,0.1186,104720.0,104710.0,0.047738]
[1737131481691,0.1186,104720.0,104710.0,0.408538]
[1737131485397,0.1186,104720.0,104710.0,0.49631263]
[1737131485587,0.3608,104730.0,104720.0,0.047734]
[1737131486194,0.44857463,104730.0,104720.0,0.047734]
[1737131486982,0.47836104,104730.0,104720.0,0.047734]
[1737131487288,0.11756104,104730.0,104720.0,0.58408326]
[1737131487596,0.1106,104740.0,104720.0,0.58408326]
[1737131487792,0.37156206,104750.0,104740.0,0.047725]
[1737131487992,0.37156206,104750.0,104740.0,0.49629963]
[1737131488997,0.2605,104760.0,104740.0,0.49629963]
[1737131489198,0.70907463,104760.0,104740.0,0.08777463]
[1737131489401,0.70907463,104760.0,104740.0,0.13549563]
[1737131489691,0.19061318,104750.0,104740.0,0.047721]
[1737131489900,0.19061318,104750.0,104740.0,0.13549563]
[1737131490699,0.87029093,104760.0,104750.0,0.04772]
[1737131490892,0.87029093,104760.0,104750.0,0.13549463]
[1737131491092,0.50949093,104760.0,104750.0,0.13549463]
[1737131492397,0.39909093,104760.0,104750.0,0.58406926]
[1737131492602,0.39909093,104760.0,104750.0,0.60919463]
[1737131493600,0.03,104760.0,104750.0,0.60919463]
[1737131494602,1.41592742,104780.0,104770.0,0.047711]
[1737131494603,1.05369454,104780.0,104770.0,0.047711]
[1737131494907,0.45061317,104780.0,104770.0,0.94486026]
[1737131495102,0.18599818,104780.0,104770.0,0.98846026]
[1737131495294,0.16822528,104780.0,104770.0,0.98846026]
[1737131495597,0.1,104800.0,104790.0,0.047702]
[1737131495799,0.1,104800.0,104790.0,0.94485126]
[1737131496396,0.1,104800.0,104790.0,0.85707663]
[1737131496596,0.1,104800.0,104790.0,0.95462406]
[1737131497096,0.1,104800.0,104790.0,0.86684943]
[1737131497294,0.1,104800.0,104790.0,0.95462406]
[1737131497903,0.1,104800.0,104790.0,0.86684943]
[1737131498299,0.1,104800.0,104790.0,0.95462406]
[1737131499003,0.1,104800.0,104790.0,0.86684943]
[1737131499605,0.1,104800.0,104790.0,1.25462406]
[1737131499805,0.1,104800.0,104790.0,1.16684943]
[1737131500101,0.1,104800.0,104790.0,0.7790748]
[1737131500797,0.1,104800.0,104790.0,0.86684943]
[1737131501404,0.1,104800.0,104790.0,0.0574748]
[1737131501607,0.047702,104790.0,104780.0,0.3608]
[1737131501911,0.44765126,104790.0,104780.0,0.3608]
[1737131502206,0.44765126,104790.0,104780.0,0.41826538]
[1737131502207,0.35987663,104790.0,104780.0,0.41826538]
[1737131503193,0.44765126,104790.0,104780.0,0.3608]
[1737131503398,0.44765126,104790.0,104770.0,0.40851]
[1737131503399,0.047707,104780.0,104770.0,0.40851]
[1737131503599,0.13548163,104780.0,104770.0,0.40851]
[1737131503898,0.13548163,104780.0,104770.0,0.3608]
[1737131505308,0.53982538,104780.0,104760.0,0.047713]
[1737131505503,0.13131838,104770.0,104750.0,0.438518]
[1737131505705,0.1101,104760.0,104750.0,0.44822808]
[1737131507006,0.1101,104760.0,104750.0,0.40050808]
[1737131507202,0.2175,104760.0,104750.0,0.40050808]
[1737131507403,0.2175,104760.0,104750.0,0.44822808]
[1737131510508,0.2175,104760.0,104750.0,0.35868416]
[1737131510712,0.34881838,104760.0,104750.0,0.05742808]
[1737131510900,0.34881838,104760.0,104740.0,0.4099549]
[1737131511103,0.34881838,104760.0,104740.0,0.3622319]
[1737131511309,0.2175,104760.0,104750.0,0.04772]
[1737131513213,0.2175,104760.0,104740.0,0.37213293]
[1737131513411,0.34881838,104760.0,104740.0,0.41985493]
[1737131513614,0.39653538,104760.0,104740.0,0.41985493]
[1737131513811,0.75733538,104760.0,104740.0,0.01133293]
[1737131514108,0.80505538,104760.0,104740.0,0.0014319]
[1737131514319,0.047727,104740.0,104720.0,0.3608]
[1737131514504,0.46661838,104730.0,104720.0,0.3608]
[1737131514708,0.3353,104730.0,104720.0,0.3608]
[1737131516008,0.6961,104730.0,104720.0,0.17905238]
[1737131516209,0.6961,104730.0,104710.0,0.05734618]
[1737131516411,0.87514738,104730.0,104710.0,0.41814618]
[1737131516918,0.6961,104730.0,104710.0,0.05734618]
[1737131517218,0.82741838,104730.0,104710.0,0.10508218]
[1737131517407,0.82741838,104730.0,104710.0,0.05734518]
[1737131517604,0.6961,104730.0,104710.0,0.05734518]
[1737131517813,0.6961,104730.0,104710.0,0.10508018]
[1737131518412,0.6961,104730.0,104710.0,0.05734418]
[1737131518617,0.6961,104730.0,104710.0,0.10508018]
[1737131519425,0.6961,104730.0,104710.0,0.05734418]
[1737131519617,0.6961,104730.0,104720.0,0.047734]
[1737131520307,0.6961,104730.0,104710.0,0.05734418]
[1737131520727,0.6961,104730.0,104710.0,0.10508018]
[1737131520923,0.6961,104730.0,104710.0,0.047735]
[1737131521114,0.87514838,104730.0,104710.0,0.047735]
[1737131521616,0.87514838,104730.0,104710.0,0.047738]
[1737131522216,0.87514838,104730.0,104700.0,0.3608]
[1737131522416,0.53985338,104720.0,104700.0,0.047742]
[1737131522619,0.408535,104720.0,104700.0,0.05773724]
[1737131523317,0.87514938,104730.0,104700.0,0.46627724]
[1737131523518,0.6961,104730.0,104710.0,0.49211838]
[1737131523712,0.6961,104730.0,104720.0,0.047734]
[1737131523913,0.3353,104730.0,104720.0,0.17905238]
[1737131524219,0.2264,104730.0,104720.0,0.53985238]
[1737131524423,0.1154,104730.0,104720.0,0.53985238]
[1737131525510,0.22743274,104750.0,104720.0,0.53985238]
[1737131525709,0.33973274,104750.0,104740.0,0.047725]
[1737131526414,0.70053274,104750.0,104740.0,0.047725]
[1737131526615,0.87957212,104750.0,104730.0,0.047728]
[1737131526819,0.13131838,104740.0,104730.0,0.047728]
[1737131527022,0.87957212,104750.0,104730.0,0.047728]
[1737131527218,0.13131838,104740.0,104720.0,0.408533]
[1737131527515,0.0876127,104730.0,104710.0,0.3608]
[1737131527721,0.4219127,104720.0,104710.0,0.047738]
[1737131528311,0.3343,104720.0,104710.0,0.047738]
[1737131528513,0.7827127,104720.0,104700.0,0.00983888]
[1737131528722,0.0876127,104710.0,104700.0,0.047741]
[1737131528918,0.0876127,104710.0,104690.0,0.40997757]
[1737131529112,0.0876127,104710.0,104700.0,0.047743]
[1737131529320,0.6951,104720.0,104700.0,0.1353517]
[1737131529622,0.6951,104720.0,104710.0,0.1353507]
[1737131530616,0.7827127,104720.0,104710.0,0.047738]
[1737131531517,0.2229,104720.0,104710.0,0.047738]
[1737131531718,0.471,104740.0,104710.0,0.53998323]
[1737131531914,0.6989,104740.0,104730.0,0.17917423]
[1737131532314,0.5887,104740.0,104730.0,0.17917423]
[1737131532517,0.5887,104740.0,104730.0,0.047729]
[1737131534414,0.72014523,104740.0,104730.0,0.047729]
[1737131534615,0.83768511,104740.0,104730.0,0.047729]
[1737131535028,0.83768511,104740.0,104720.0,0.04773]
[1737131535225,0.3608,104730.0,104720.0,0.04773]
[1737131535419,0.47688511,104740.0,104730.0,0.047729]
[1737131535620,0.2279,104740.0,104730.0,0.047729]
[1737131536623,0.35934523,104740.0,104730.0,0.047729]
[1737131537329,0.72014523,104740.0,104730.0,0.047729]
[1737131537529,0.72014523,104740.0,104720.0,0.3608]
[1737131537721,0.24124523,104730.0,104720.0,0.408532]
[1737131538126,0.1098,104730.0,104720.0,0.408532]
[1737131538521,0.24124523,104730.0,104720.0,0.047732]
[1737131539031,0.60204523,104730.0,104720.0,0.047732]
[1737131539826,0.4706,104730.0,104720.0,0.047732]
[1737131540022,0.58813741,104730.0,104720.0,0.047732]
[1737131540422,0.11753741,104730.0,104720.0,0.047732]
[1737131540731,0.59876705,104740.0,104720.0,0.047732]
[1737131541130,0.59876705,104740.0,104730.0,0.047729]
[1737131541432,0.7163167,104740.0,104730.0,0.047729]
[1737131541934,0.89548693,104740.0,104710.0,0.047737]
[1737131542133,0.13144523,104720.0,104710.0,0.047737]
[1737131542334,0.3608,104720.0,104710.0,0.047737]
[1737131543032,0.4779,104730.0,104720.0,0.047734]
[1737131543332,0.3608,104730.0,104720.0,0.047734]
[1737131543531,0.5887,104740.0,104730.0,0.047729]
[1737131543721,0.72014523,104740.0,104720.0,0.047732]
[1737131543928,0.13144523,104730.0,104720.0,0.047732]
[1737131544431,0.49224523,104730.0,104710.0,0.047737]
[1737131544626,0.49224523,104720.0,104710.0,0.047737]
[1737131544934,0.4738,104720.0,104710.0,0.047737]
[1737131545527,0.60524523,104720.0,104710.0,0.047737]
[1737131546033,0.4738,104720.0,104710.0,0.047737]
[1737131546738,0.4738,104720.0,104700.0,0.41835749]
[1737131546739,0.60524523,104720.0,104700.0,0.41835749]
[1737131546947,0.2167,104710.0,104700.0,0.41835749]
[1737131547154,0.2167,104710.0,104700.0,0.54980272]
[1737131547352,0.2167,104710.0,104700.0,0.41835749]
[1737131548150,0.5775,104710.0,104700.0,0.05755749]
[1737131548854,0.1064,104710.0,104700.0,0.54980272]
[1737131549050,0.11756176,104720.0,104710.0,0.047738]
[1737131549251,0.1158,104730.0,104720.0,0.047734]
[1737131549567,0.1158,104730.0,104720.0,0.53997923]
[1737131549861,0.1158,104730.0,104720.0,0.408534]
[1737131550055,0.1126,104740.0,104720.0,0.53997923]
[1737131550365,0.23334178,104750.0,104740.0,0.047725]
[1737131550552,0.23334178,104750.0,104740.0,0.408525]
[1737131551162,0.23014178,104760.0,104740.0,0.53997023]
[1737131551464,0.11754178,104760.0,104750.0,0.53996523]
[1737131551849,0.11754178,104770.0,104750.0,0.53996523]
[1737131552047,0.11754178,104770.0,104760.0,0.408516]
[1737131552654,0.85114407,104790.0,104760.0,0.408516]
[1737131552894,0.13144523,104780.0,104770.0,0.047707]
[1737131554061,0.60724523,104780.0,104760.0,0.408514]
[1737131554255,0.13144523,104770.0,104760.0,0.408514]
[1737131554464,0.60724523,104780.0,104760.0,0.408514]
[1737131554647,0.13144523,104770.0,104760.0,0.408514]
[1737131554966,0.60724523,104780.0,104760.0,0.408512]
[1737131555168,0.4758,104780.0,104770.0,0.047711]
[1737131555655,0.115,104780.0,104770.0,0.047711]
[1737131555861,0.73360229,104790.0,104770.0,0.047707]
[1737131556558,0.73360229,104790.0,104780.0,0.047707]
[1737131556757,0.60215706,104790.0,104780.0,0.047707]
[1737131557058,0.23133223,104790.0,104780.0,0.408507]
[1737131557955,0.23133223,104790.0,104780.0,0.047707]
[1737131558155,0.23133223,104790.0,104780.0,0.408507]
[1737131558748,0.4608,104800.0,104790.0,0.047702]
[1737131558954,0.1,104800.0,104790.0,0.53994723]
[1737131559665,0.1,104800.0,104790.0,0.80514723]
[1737131560550,0.49308249,104870.0,104820.0,0.047688]
[1737131560770,0.1178,104860.0,104850.0,0.5396559]
[1737131561069,0.1178,104860.0,104850.0,0.40821067]
[1737131561361,0.24924523,104860.0,104820.0,0.44263323]
[1737131561562,0.61004523,104860.0,104840.0,0.408478]
[1737131562066,0.61004523,104860.0,104840.0,0.047678]
[1737131563265,0.1026175,104850.0,104840.0,0.047678]
[1737131564154,0.59486273,104850.0,104830.0,0.408482]
[1737131564557,0.4634175,104850.0,104830.0,0.53992523]
[1737131564761,0.84363942,104860.0,104830.0,0.53992523]
[1737131564762,0.84363942,104860.0,104840.0,0.047679]
[1737131565270,0.48283942,104860.0,104840.0,0.408479]
[1737131565964,0.53992023,104850.0,104830.0,0.047683]
[1737131566164,0.13144523,104840.0,104820.0,0.41831765]
[1737131566466,0.1167,104830.0,104820.0,0.41831765]
[1737131566861,0.1167,104830.0,104820.0,0.408487]
[1737131567167,0.25932602,104830.0,104820.0,0.53993223]
[1737131567554,0.25932602,104830.0,104820.0,0.408487]
[1737131568066,0.1567,104830.0,104820.0,0.408487]
[1737131568363,0.64894523,104830.0,104810.0,0.4008]
[1737131568668,0.23914523,104820.0,104810.0,0.04]
[1737131569166,0.38947271,104820.0,104810.0,0.04]
[1737131569585,0.75027271,104820.0,104810.0,0.04]
[1737131569788,0.75027271,104820.0,104800.0,0.001431]
[1737131570077,0.3608,104810.0,104800.0,0.001431]
[1737131570175,0.53993823,104810.0,104780.0,0.49224523]
[1737131570378,0.53993823,104810.0,104790.0,0.047702]
[1737131570379,0.4741,104810.0,104790.0,0.047702]
[1737131570871,0.4741,104810.0,104800.0,0.047697]
[1737131571058,0.3608,104810.0,104800.0,0.047697]
[1737131571864,0.49224523,104810.0,104790.0,0.0954]
[1737131572065,0.49224523,104810.0,104790.0,0.047699]
[1737131572775,0.53993823,104810.0,104790.0,0.047699]
[1737131572966,0.1171,104800.0,104790.0,0.047699]
[1737131577566,0.24854523,104800.0,104790.0,0.047699]
[1737131577968,0.74079046,104800.0,104780.0,0.37038654]
[1737131578176,0.60194523,104790.0,104770.0,0.04771]
[1737131578472,0.64964823,104790.0,104770.0,0.0576672]
[1737131578667,0.64964823,104790.0,104770.0,0.0099572]
[1737131578876,0.64964823,104790.0,104760.0,0.408513]
[1737131579172,0.64964823,104790.0,104770.0,0.047711]
[1737131579373,0.13144523,104780.0,104770.0,0.047711]
[1737131579565,0.64964823,104790.0,104770.0,0.047711]
[1737131579967,0.1097,104790.0,104780.0,0.047707]
[1737131580576,0.60194523,104790.0,104770.0,0.047709]
[1737131580771,0.13144523,104780.0,104770.0,0.02926263]
[1737131580967,0.60194523,104790.0,104770.0,0.02926263]
[1737131581169,0.10267913,104780.0,104770.0,0.02926263]
[1737131582072,0.1097,104790.0,104780.0,0.047707]
[1737131582267,0.1097,104790.0,104780.0,0.53995223]
[1737131582572,0.1171,104800.0,104790.0,0.047702]
[1737131582876,0.1171,104800.0,104790.0,0.53994723]
[1737131583583,0.1171,104800.0,104790.0,0.408502]
[1737131586081,0.24854523,104800.0,104790.0,0.408502]
[1737131586272,0.65704323,104800.0,104780.0,0.41830169]
[1737131586575,0.13144523,104790.0,104780.0,0.3608]
[1737131586781,0.36534523,104800.0,104780.0,0.408503]
[1737131586971,0.36534523,104800.0,104790.0,0.408502]
[1737131587176,0.1171,104800.0,104790.0,0.408502]
[1737131587771,0.24854523,104800.0,104790.0,0.408502]
[1737131588173,0.24854523,104800.0,104790.0,0.3608]
[1737131588371,0.24854523,104800.0,104780.0,0.41815298]
[1737131588671,0.24854523,104800.0,104780.0,0.408507]
[1737131588672,0.13144523,104790.0,104780.0,0.408507]
[1737131588871,0.13144523,104790.0,104780.0,0.3608]
[1737131589071,0.28874723,104790.0,104780.0,0.3608]
[1737131589674,0.1171,104800.0,104780.0,0.3608]
[1737131590079,0.60934523,104800.0,104780.0,0.408504]
[1737131590384,0.24854523,104800.0,104780.0,0.456208]
[1737131590777,0.1171,104800.0,104780.0,0.456208]
[1737131591579,0.65704323,104800.0,104780.0,0.408504]
[1737131591778,0.6667897,104800.0,104780.0,0.408504]
[1737131592087,0.13144523,104790.0,104780.0,0.408504]
[1737131592284,0.6667897,104800.0,104780.0,0.408504]
[1737131592985,0.1171,104800.0,104790.0,0.53994723]
[1737131593782,0.12013193,104810.0,104800.0,0.047697]
[1737131593986,0.12013193,104810.0,104800.0,0.53994223]
[1737131594178,0.12013193,104810.0,104800.0,0.408497]
[1737131594579,0.12013193,104810.0,104800.0,0.047697]
[1737131594883,0.12013193,104810.0,104800.0,0.408497]
[1737131595779,0.12013193,104810.0,104800.0,0.41809864]
[1737131595987,0.00143193,104810.0,104800.0,0.54954387]
[1737131597483,0.2257,104820.0,104810.0,0.047693]
[1737131597682,0.2257,104820.0,104810.0,0.408493]
[1737131598077,0.2257,104820.0,104810.0,0.53993823]
[1737131598588,0.2257,104820.0,104810.0,0.3189992]
[1737131598789,0.1183,104820.0,104810.0,0.49813743]
[1737131599889,0.04,104830.0,104820.0,0.047688]
[1737131600087,0.04,104830.0,104820.0,0.408488]
[1737131600385,0.04,104830.0,104820.0,0.53993323]
[1737131600691,0.04,104830.0,104820.0,0.51006818]
[1737131600987,0.04,104830.0,104820.0,0.37862295]
[1737131602289,0.04,104830.0,104820.0,0.51006818]
[1737131602481,0.04,104830.0,104820.0,0.37862295]
[1737131602980,0.04,104830.0,104820.0,0.51006818]
[1737131603176,0.04,104830.0,104820.0,0.37862295]
[1737131603377,0.17144523,104830.0,104820.0,0.37862295]
[1737131603894,0.04,104830.0,104820.0,0.51006818]
[1737131604089,0.17144523,104830.0,104820.0,0.37862295]
[1737131604290,0.04,104830.0,104820.0,0.37862295]
[1737131606395,0.17144523,104830.0,104820.0,0.37862295]
[1737131606791,0.17144523,104830.0,104820.0,0.33093495]
[1737131607491,0.12746223,104830.0,104820.0,0.33093495]
[1737131608398,0.17514623,104830.0,104820.0,0.33093495]
[1737131608701,0.12746223,104830.0,104820.0,0.37862295]
[1737131609998,0.04,104830.0,104820.0,0.37862295]
[1737131610199,0.12746223,104830.0,104820.0,0.37862295]
[1737131610892,0.04,104830.0,104820.0,0.37862295]
[1737131611397,0.04,104830.0,104820.0,0.46608518]
[1737131611695,0.04,104830.0,104820.0,0.37862295]
[1737131615799,0.12746223,104830.0,104820.0,0.37862295]
[1737131616789,0.04,104830.0,104820.0,0.37862295]
[1737131617088,0.04,104830.0,104820.0,0.46608518]
[1737131620301,0.04,104830.0,104820.0,0.55354741]
[1737131620499,0.04,104830.0,104820.0,0.46608518]
[1737131623908,0.2716,104830.0,104820.0,0.46608518]
[1737131624596,0.1569,104830.0,104820.0,0.46608518]
[1737131631605,0.24436223,104830.0,104820.0,0.37862295]
[1737131631897,0.29204823,104830.0,104810.0,0.37635265]
[1737131632098,0.1129,104820.0,104810.0,0.37635265]
[1737131632297,0.1129,104820.0,104810.0,0.46381488]
[1737131632499,0.21553517,104820.0,104810.0,0.46381488]
[1737131633397,0.1129,104820.0,104810.0,0.46381488]
[1737131634506,0.1129,104820.0,104810.0,0.37635265]
[1737131634708,0.24805023,104820.0,104810.0,0.32866165]
[1737131634900,0.24805023,104820.0,104810.0,0.3189992]
[1737131635214,0.20036223,104820.0,104810.0,0.3666922]
[1737131635405,0.1129,104820.0,104810.0,0.3666922]
[1737131635607,0.1129,104820.0,104810.0,0.45415443]
[1737131636206,0.1129,104820.0,104810.0,0.49595523]
[1737131637311,0.1129,104820.0,104810.0,0.408493]
[1737131637612,0.1129,104820.0,104810.0,0.49595523]
[1737131638510,0.1129,104820.0,104810.0,0.466091]
[1737131639104,0.1129,104820.0,104810.0,0.37862877]
[1737131639408,0.1129,104820.0,104810.0,0.466091]
[1737131640708,0.1129,104820.0,104810.0,0.37862877]
[1737131640906,0.20036223,104820.0,104810.0,0.37862877]
[1737131641101,0.69631346,104820.0,104790.0,0.36223103]
[1737131641407,0.08746223,104800.0,104790.0,0.40993003]
[1737131641806,0.25025923,104800.0,104790.0,0.00143103]
[1737131642003,0.25025923,104800.0,104780.0,0.408504]
[1737131642208,0.19886223,104790.0,104780.0,0.408504]
[1737131642410,0.1114,104790.0,104780.0,0.408504]
[1737131642802,0.30152274,104790.0,104770.0,0.3608]
[1737131643009,0.08746223,104780.0,104770.0,0.40851]
[1737131643206,0.30152274,104790.0,104770.0,0.49597023]
[1737131643407,0.34922474,104790.0,104770.0,0.408508]
[1737131643917,0.30292274,104780.0,104770.0,0.408508]
[1737131644214,0.30292274,104780.0,104770.0,0.3608]
[1737131644401,0.21546051,104780.0,104770.0,0.3608]
[1737131644608,0.21546051,104780.0,104770.0,0.49597323]
[1737131644806,0.21546051,104780.0,104770.0,0.408511]
[1737131645008,0.21546051,104780.0,104770.0,0.49597323]
[1737131645307,0.1128,104780.0,104770.0,0.49597323]
[1737131645510,0.1128,104780.0,104770.0,0.408511]
[1737131645908,0.31628957,104790.0,104780.0,0.047707]
[1737131646110,0.1114,104790.0,104780.0,0.047707]
[1737131646611,0.19886223,104790.0,104780.0,0.047707]
[1737131646808,0.64712446,104790.0,104770.0,0.40851]
[1737131647013,0.08746223,104780.0,104770.0,0.40851]
[1737131647320,0.49596923,104780.0,104760.0,0.00963097]
[1737131647508,0.76152446,104770.0,104740.0,0.3608]
[1737131647713,0.49598323,104750.0,104720.0,0.047732]
[1737131647906,0.08746223,104730.0,104720.0,0.3608]
[1737131648122,0.2259,104740.0,104730.0,0.047729]
[1737131648307,0.1088,104740.0,104730.0,0.58345346]
[1737131648512,0.1147,104760.0,104750.0,0.04772]
[1737131648717,0.2226,104760.0,104750.0,0.76932]
[1737131649225,0.31006223,104760.0,104750.0,0.76932]
[1737131649521,0.31006223,104760.0,104740.0,0.408524]
[1737131650207,0.08746223,104750.0,104740.0,0.3608]
[1737131650619,0.31006223,104760.0,104740.0,0.44826223]
[1737131650816,0.31006223,104760.0,104740.0,0.408524]
[1737131651210,0.31006223,104760.0,104740.0,0.49598623]
[1737131651407,0.2226,104760.0,104740.0,0.49215425]
[1737131651715,0.2226,104760.0,104750.0,0.04772]
[1737131653319,0.2226,104760.0,104750.0,0.53987425]
[1737131653516,0.00143246,104780.0,104750.0,0.53987425]
[1737131653711,0.22653246,104780.0,104770.0,0.13135425]
[1737131653914,0.22653246,104780.0,104770.0,0.047711]
[1737131654115,0.22653246,104780.0,104770.0,0.3608]
[1737131654310,0.35788671,104780.0,104760.0,0.408514]
[1737131654511,0.13135425,104770.0,104750.0,0.408519]
[1737131654913,0.3608,104770.0,104740.0,0.49215425]
[1737131655122,0.59484607,104760.0,104740.0,0.408524]
[1737131655415,0.2166,104750.0,104740.0,0.408524]
[1737131655623,0.2166,104750.0,104730.0,0.408528]
[1737131655624,0.34795425,104750.0,104730.0,0.408528]
[1737131656524,0.39567525,104750.0,104730.0,0.408528]
[1737131656724,0.75647525,104750.0,104730.0,0.408528]
[1737131656918,0.53988125,104740.0,104710.0,0.36223245]
[1737131657113,0.13135425,104730.0,104710.0,0.40997045]
[1737131657318,0.2283,104720.0,104710.0,0.40997045]
[1737131658524,0.2283,104720.0,104710.0,0.5413247]
[1737131658925,0.53987525,104750.0,104730.0,0.047729]
[1737131658926,0.50198235,104750.0,104730.0,0.047729]
[1737131659126,0.1137,104740.0,104730.0,0.53988325]
[1737131659326,0.1137,104740.0,104730.0,0.408529]
[1737131660216,0.227,104740.0,104730.0,0.408529]
[1737131660413,0.227,104740.0,104730.0,0.53988325]
[1737131661024,0.1133,104740.0,104730.0,0.53988325]
[1737131661326,0.1142,104760.0,104750.0,0.04772]
[1737131661522,0.2275,104760.0,104750.0,0.04772]
[1737131661719,0.2275,104760.0,104750.0,0.40852]
[1737131661926,0.2275,104760.0,104750.0,0.04772]
[1737131662228,0.76737425,104760.0,104730.0,0.047728]
[1737131662416,0.49215425,104740.0,104720.0,0.408532]
[1737131662730,0.1133,104730.0,104720.0,0.408532]
[1737131662922,0.2275,104730.0,104720.0,0.408532]
[1737131665228,0.1133,104730.0,104720.0,0.53988625]
[1737131665429,0.1133,104730.0,104720.0,0.408532]
[1737131667129,0.24465425,104730.0,104720.0,0.408532]
[1737131667431,0.60545425,104730.0,104720.0,0.047732]
[1737131667731,0.60545425,104730.0,104710.0,0.40996945]
[1737131667935,0.13135425,104720.0,104710.0,0.40996945]
[1737131668136,0.60545425,104730.0,104710.0,0.40996945]
[1737131668933,0.13135425,104720.0,104710.0,0.40996945]
[1737131671345,0.53988825,104720.0,104710.0,0.00143245]
[1737131671545,0.7787425,104720.0,104700.0,0.1]
[1737131671736,0.60515425,104710.0,104700.0,0.1]
[1737131672144,0.113,104710.0,104700.0,0.508543]
[1737131672739,0.24435425,104710.0,104700.0,0.508543]
[1737131672945,0.24435425,104710.0,104700.0,0.147743]
[1737131673250,0.113,104710.0,104700.0,0.147743]
[1737131673449,0.60515425,104710.0,104700.0,0.1]
[1737131673651,0.65289225,104710.0,104700.0,0.1]
[1737131673945,0.60515425,104710.0,104700.0,0.1]
[1737131674143,0.00979607,104720.0,104710.0,0.047738]
[1737131674451,0.82875425,104730.0,104710.0,0.047738]
[1737131675255,0.82875425,104730.0,104720.0,0.047734]
[1737131675450,0.59491299,104730.0,104720.0,0.047734]
[1737131675947,0.72626724,104730.0,104720.0,0.047734]
[1737131676338,0.36546724,104730.0,104720.0,0.047734]
[1737131676538,0.13135425,104730.0,104720.0,0.047732]
[1737131676744,0.24755425,104730.0,104720.0,0.047732]
[1737131677445,0.60835425,104730.0,104710.0,0.047736]
[1737131677744,0.49215425,104720.0,104700.0,0.147742]
[1737131677949,0.477,104730.0,104710.0,0.047738]
[1737131678148,0.10274904,104720.0,104710.0,0.047738]
[1737131678351,0.10274904,104720.0,104710.0,0.53989225]